fUSD/lending_fUSD_20250204
["ID","MTS","AMOUNT","RATE_DAILY","PERIOD"]
[351597743,1738651930821,-500.0,9.962e-05,2]
[351597744,1738651930831,-502.67,9.962e-05,2]
[351597745,1738651930842,-708.74,9.962e-05,2]
[351597746,1738651930852,-621.2,9.962e-05,2]
[351597747,1738651930862,-1126.75,9.962e-05,2]
[351597748,1738651930871,-500.0,9.962e-05,2]
[351597749,1738651930881,-500.0,9.962e-05,2]
[351597750,1738651930891,-1267.09,9.962e-05,2]
[351597751,1738651930902,-500.0,9.962e-05,2]
[351597752,1738651930911,-1330.04,9.962e-05,2]
[351597753,1738651930922,-893.25,9.962e-05,2]
[351597754,1738651930932,-500.0,9.962e-05,2]
[351597755,1738651930942,-522.19,9.962e-05,2]
[351597756,1738651930952,-741.38,9.962e-05,2]
[351597757,1738651930962,-1262.08,9.962e-05,2]
[351597758,1738651930973,-500.0,9.962e-05,2]
[351597759,1738651930983,-500.0,9.962e-05,2]
[351597760,1738651930994,-649.6,9.962e-05,2]
[351597761,1738651931003,-1136.55,9.962e-05,2]
[351597762,1738651931014,-500.0,9.962e-05,2]
[351597763,1738651931024,-500.0,9.962e-05,2]
[351597764,1738651931034,-706.95,9.962e-05,2]
[351597765,1738651931044,-1345.97,9.962e-05,2]
[351597766,1738651931054,-500.0,9.962e-05,2]
[351597767,1738651931066,-507.13,9.962e-05,2]
[351597768,1738651931076,-732.49,9.962e-05,2]
[351597769,1738651931086,-1293.49,9.962e-05,2]
[351597770,1738651931097,-502.79374801,9.962e-05,2]
[351597771,1738651931107,-150.0,9.968e-05,2]
[351597772,1738651931119,-150.0,9.969e-05,2]
[351597773,1738651931132,-284.75351065,9.973e-05,2]
[351597774,1738651931142,-3010798.47170724,9.98e-05,2]
[351597775,1738651931153,-5678.1037888,9.981e-05,2]
[351597776,1738651931164,-1894.8987615,9.981e-05,2]
[351597777,1738651931174,-150.0,9.981e-05,2]
[351597778,1738651931184,-654.9802228,9.981e-05,2]
[351597779,1738651931194,-150.82179622,9.984e-05,2]
[351597780,1738651931206,-150.0,9.986e-05,2]
[351597781,1738651931217,-1514825.73555818,9.988e-05,2]
[351597782,1738651931227,-143820.43734238,9.988e-05,2]
[351597783,1738651931236,-152.0,9.991e-05,9]
[351597784,1738651931246,-5227.9037958,9.993e-05,2]
[351597785,1738651931255,-4777.7038027,9.993e-05,2]
[351597786,1738651931265,-1744.657864,9.993e-05,2]
[351597787,1738651931274,-1594.4169665,9.993e-05,2]
[351597788,1738651931283,-604.5971287,9.993e-05,2]
[351597789,1738651931293,-554.2140347,9.993e-05,2]
[351597790,1738651931303,-1519984.87533606,9.998e-05,2]
[351597791,1738651931826,-1772653.6292,9.998e-05,2]
[351597792,1738651933742,-152.0,0.00011858,18]
[351597793,1738651933780,-5448.0,0.00012,18]
[351597794,1738651955651,-152.0,0.00011235,15]
[351597795,1738651955697,-152.0,0.00011443,16]
[351597796,1738651955743,-152.0,0.0001165,17]
[351597797,1738651955799,-5144.0,0.00012,18]
[351597798,1738651960326,-152.0,0.00010198,10]
[351597799,1738651960394,-152.0,0.00010406,11]
[351597800,1738651960452,-152.0,0.00010613,12]
[351597801,1738651960514,-152.0,0.0001082,13]
[351597802,1738651960574,-1004.88639395,0.00011,10]
[351597803,1738651960601,-152.0,0.00011028,14]
[351597804,1738651960759,-3835.11360605,0.00012,18]
[351597807,1738651975617,500.0,8.665e-05,30]
[351597808,1738651975870,500.0,8.802e-05,30]
[351597809,1738651976099,500.0,8.939e-05,30]
[351597810,1738651976365,500.0,9.076e-05,30]
[351597811,1738651976598,500.0,9.213e-05,30]
[351597820,1738652464791,1267.18,7.845e-05,2]
[351597821,1738652505036,-155.676251,0.0001176,18]
[351597822,1738652505091,-113583.34356032,0.00012,18]
[351597823,1738652505216,-155.676251,0.00012,18]
[351597824,1738652505292,-526105.30393768,0.00012,18]
[351597828,1738652669065,-745000.0,0.00012,18]
[351597830,1738652805107,-150.94218642,8.087e-05,2]
[351597831,1738652819139,-10000.0,0.00012,18]
[351597832,1738652828104,-21.94781358,8.087e-05,2]
[351597833,1738652828125,-1059.0,8.187e-05,2]
[351597834,1738652828147,-150.0,8.218e-05,2]
[351597835,1738652828168,-150.0,8.219e-05,2]
[351597836,1738652828188,-250.0,8.219e-05,2]
[351597837,1738652828208,-674.02,8.219e-05,2]
[351597838,1738652828228,-163.95,8.219e-05,2]
[351597839,1738652828249,-1000.0,8.219e-05,2]
[351597840,1738652828269,-1200.0,8.22e-05,2]
[351597841,1738652828290,-2500.0,8.22e-05,2]
[351597842,1738652828313,-114.16184236,8.26e-05,2]
[351597843,1738652835278,-10000.0,0.00012,18]
[351597844,1738652844455,-10000.0,0.00012,18]
[351597852,1738652916207,-10000.0,0.00012,18]
[351597855,1738652943402,166.0,0.000181,60]
[351597868,1738653031781,-150.0,8.004e-05,2]
[351597869,1738653031791,-1059.0,8.004e-05,2]
[351597870,1738653031800,-1059.0,8.004e-05,2]
[351597871,1738653031810,-1059.0,8.004e-05,2]
[351597872,1738653031820,-1059.0,8.004e-05,2]
[351597873,1738653031832,-1059.0,8.004e-05,2]
[351597874,1738653031841,-1059.0,8.004e-05,2]
[351597875,1738653031851,-1059.0,8.004e-05,2]
[351597876,1738653031860,-1059.0,8.004e-05,2]
[351597877,1738653031868,-1059.0,8.004e-05,2]
[351597878,1738653031878,-31006.17265642,8.004e-05,2]
[351597879,1738653031888,-150.0,8.218e-05,2]
[351597880,1738653031897,-2104.44,8.219e-05,2]
[351597881,1738653031908,-2300.0,8.22e-05,2]
[351597882,1738653031919,-1100.0,8.22e-05,2]
[351597883,1738653031929,-625.97318325,8.536e-05,2]
[351597884,1738653031939,-625.97318325,8.563e-05,2]
[351597885,1738653031949,-2500.0,8.564e-05,2]
[351597886,1738653031960,-326.70040233,8.617e-05,2]
[351597887,1738653031969,-685.41,8.618e-05,2]
[351597888,1738653031980,-1144.08,8.618e-05,2]
[351597889,1738653031991,-500.0,8.618e-05,2]
[351597890,1738653032001,-1434.93,8.618e-05,2]
[351597891,1738653032010,-1059.0,8.618e-05,2]
[351597892,1738653032020,-242755.32057469,8.618e-05,2]
[351597895,1738653032031,-2813.51741713,8.618e-05,2]
[351597896,1738653032060,-2400.0,8.618e-05,2]
[351597955,1738653038384,-1059.0,8.004e-05,2]
[351597957,1738653038393,-148.8084644,8.618e-05,2]
[351597959,1738653038404,-461.429366,8.618e-05,2]
[351597962,1738653038419,-603.4721696,8.618e-05,2]
[351597964,1738653038428,-500.0,8.618e-05,2]
[351597966,1738653038437,-1074.26568245,8.618e-05,2]
[351597972,1738653038489,-626.99863006,8.618e-05,2]
[351598067,1738653039596,-329.89769567,8.618e-05,2]
[351598069,1738653039605,-601.14651039,8.663e-05,2]
[351598071,1738653039617,-276.066517,8.663e-05,2]
[351598073,1738653039630,-203.43697261,8.663e-05,2]
[351598075,1738653039640,-89.12302939,8.663e-05,2]
[351598538,1738653044063,-1596.71697061,8.663e-05,2]
[351598540,1738653044073,-1517.81,8.663e-05,2]
[351598542,1738653044082,-1196.105587,8.663e-05,2]
[351598544,1738653044091,-234.29058686,8.663e-05,2]
[351598546,1738653044102,-1421.46941314,8.663e-05,2]
[351598548,1738653044113,-1678.88,8.663e-05,2]
[351598551,1738653044123,-155.639737,8.663e-05,2]
[351598553,1738653044132,-1445.98,8.663e-05,2]
[351598554,1738653044142,-291.82209801,8.663e-05,2]
[351598557,1738653044153,-208.17790199,8.663e-05,2]
[351598559,1738653044163,-791.82209801,8.663e-05,2]
[351598640,1738653045674,-235.98790199,8.663e-05,2]
[351598641,1738653045683,-47.57103988,8.663e-05,2]
[351598642,1738653045701,-1174.50896012,8.663e-05,2]
[351598643,1738653045711,-1578.07,8.663e-05,2]
[351598644,1738653045720,-1213.378571,8.663e-05,2]
[351598645,1738653045730,-682.68,8.663e-05,2]
[351598646,1738653045742,-1234.69,8.663e-05,2]
[351598647,1738653045751,-416.77982016,8.663e-05,2]
[351598648,1738653045875,-773.48017984,8.663e-05,2]
[351598649,1738653045884,-500.0,8.663e-05,2]
[351598650,1738653045893,-1038.89,8.663e-05,2]
[351598651,1738653045902,-1593.49,8.663e-05,2]
[351598652,1738653045911,-1366.73,8.663e-05,2]
[351598653,1738653045921,-2000.38,8.663e-05,2]
[351598654,1738653045930,-1515.38,8.663e-05,2]
[351598655,1738653045939,-3322.48,8.663e-05,2]
[351598656,1738653045951,-1343.6,8.663e-05,2]
[351598657,1738653045970,-1144.13,8.663e-05,2]
[351598658,1738653045990,-1799.13,8.663e-05,2]
[351598659,1738653046013,-1920.49,8.663e-05,2]
[351598660,1738653046027,-5453.65,8.663e-05,2]
[351598661,1738653046037,-3822.26,8.663e-05,2]
[351598662,1738653046055,-1940.26,8.663e-05,2]
[351598663,1738653046078,-500.0,8.663e-05,2]
[351598664,1738653046091,-3301.9,8.663e-05,2]
[351598665,1738653046100,-708.24,8.663e-05,2]
[351598666,1738653046112,-1425.4,8.663e-05,2]
[351598667,1738653046122,-2306.32,8.663e-05,2]
[351598668,1738653046133,-1948.99,8.663e-05,2]
[351598669,1738653046143,-2218.33,8.663e-05,2]
[351598670,1738653046151,-2179.01,8.663e-05,2]
[351598671,1738653046160,-2218.91,8.663e-05,2]
[351598672,1738653046170,-1405.94,8.663e-05,2]
[351598673,1738653046179,-1987.67,8.663e-05,2]
[351598674,1738653046188,-4204.85,8.663e-05,2]
[351598675,1738653046197,-1814.16,8.663e-05,2]
[351598676,1738653046206,-500.0,8.663e-05,2]
[351598677,1738653046216,-1789.54,8.663e-05,2]
[351598678,1738653046226,-1961.36,8.663e-05,2]
[351598679,1738653046235,-605.32,8.663e-05,2]
[351598680,1738653046244,-1985.62,8.663e-05,2]
[351598681,1738653046254,-2051.65,8.663e-05,2]
[351598682,1738653046265,-1903.69,8.663e-05,2]
[351598683,1738653046274,-500.0,8.663e-05,2]
[351598684,1738653046284,-1918.41,8.663e-05,2]
[351598685,1738653046293,-1539.96,8.663e-05,2]
[351598686,1738653046302,-500.0,8.663e-05,2]
[351598687,1738653046312,-1053.98,8.663e-05,2]
[351598688,1738653046321,-870.89,8.663e-05,2]
[351598689,1738653046330,-906.81,8.663e-05,2]
[351598690,1738653046339,-1322.68,8.663e-05,2]
[351598691,1738653046349,-2035.73,8.663e-05,2]
[351598692,1738653046359,-1035.62,8.663e-05,2]
[351598693,1738653046368,-500.0,8.663e-05,2]
[351598694,1738653046378,-828.1,8.664e-05,2]
[351598695,1738653046387,-2195.74,8.664e-05,2]
[351598696,1738653046396,-1418.18,8.664e-05,2]
[351598697,1738653046405,-499.67469116,8.664e-05,2]
[351598698,1738653046415,-820.59,8.664e-05,2]
[351598699,1738653046424,-1657.36,8.664e-05,2]
[351598700,1738653046434,-500.0,8.664e-05,2]
[351598701,1738653046443,-1152.91,8.664e-05,2]
[351598702,1738653046452,-2279.89,8.664e-05,2]
[351598703,1738653046461,-500.0,8.664e-05,2]
[351598704,1738653046471,-1290.68,8.664e-05,2]
[351598705,1738653046480,-500.0,8.664e-05,2]
[351598706,1738653046748,-997.545129,8.664e-05,2]
[351598707,1738653046780,-241.424871,8.664e-05,2]
[351598708,1738653046790,-361.375129,8.664e-05,2]
[351598709,1738653046907,150.21,7.896e-05,2]
[351598714,1738653076824,106108.0,8e-05,2]
[351598721,1738653605639,160.0,8e-05,30]
[351598722,1738653605937,160.0,0.0001,30]
[351598725,1738653647650,633.51000586,8e-05,2]
[351598728,1738653677732,2166.97,7.812e-05,2]
[351598731,1738653924857,23807.88203073,0.000189,120]
[351598732,1738653958204,-1059.0,8.004e-05,2]
[351598733,1738653958229,-1059.0,8.004e-05,2]
[351598734,1738653958253,-1062.0,8.004e-05,2]
[351598735,1738653986851,275.16,7.806e-05,2]
[351598738,1738654051187,-6.76855354,8.004e-05,2]
[351598739,1738654051216,-814.887844,8.178e-05,2]
[351598740,1738654051243,-689.19,8.219e-05,2]
[351598741,1738654051271,-250.0,8.219e-05,2]
[351598742,1738654051299,-163.95,8.219e-05,2]
[351598743,1738654051328,-1000.0,8.219e-05,2]
[351598744,1738654051357,-2017.12,8.219e-05,2]
[351598745,1738654051383,-1100.0,8.22e-05,2]
[351598746,1738654051413,-1503.20380509,8.22e-05,2]
[351598771,1738654231783,-250.0,8.219e-05,2]
[351598772,1738654231793,-520.68,8.219e-05,2]
[351598773,1738654231803,-163.95,8.219e-05,2]
[351598774,1738654231813,-896.79619491,8.22e-05,2]
[351598775,1738654231824,-1000.0,8.22e-05,2]
[351598776,1738654231834,-618.57380509,8.49e-05,2]
[351598777,1738654231856,-831.97719491,8.49e-05,2]
[351598778,1738654231866,-654.90677509,8.562e-05,2]
[351598779,1738654231878,-3695.25999993,8.562e-05,2]
[351598780,1738654231890,-2139.23480222,8.562e-05,2]
[351598781,1738654231908,-26004.90902276,8.562e-05,2]
[351598782,1738654231918,-1303.0215,8.563e-05,2]
[351598783,1738654231927,-150.0,8.617e-05,2]
[351598784,1738654231938,-679.09,8.618e-05,2]
[351598785,1738654231948,-793.6,8.618e-05,2]
[351598786,1738654231958,-1075.94,8.618e-05,2]
[351598787,1738654231968,-786.4,8.618e-05,2]
[351598788,1738654231979,-1588.31,8.618e-05,2]
[351598789,1738654231989,-500.0,8.618e-05,2]
[351598790,1738654231999,-1104.87,8.618e-05,2]
[351598791,1738654232008,-1236.9,8.618e-05,2]
[351598792,1738654232018,-2143.15947538,8.618e-05,2]
[351598793,1738654232048,-41.73052462,8.618e-05,2]
[351598794,1738654232058,-500.0,8.618e-05,2]
[351598795,1738654232067,-458.26947538,8.618e-05,2]
[351598796,1738654232095,-550.99707701,8.618e-05,2]
[351598797,1738654232107,-98.70344761,8.618e-05,2]
[351598798,1738654232117,-453.15173964,8.618e-05,2]
[351598799,1738654232138,-342.58826036,8.618e-05,2]
[351598800,1738654232148,-500.0,8.618e-05,2]
[351598801,1738654232157,-180.62492692,8.618e-05,2]
[351598802,1738654232167,-322.65912308,8.618e-05,2]
[351598804,1738654232187,-792.63087692,8.618e-05,2]
[351598806,1738654232196,-500.0,8.618e-05,2]
[351598808,1738654232206,-1115.36,8.618e-05,2]
[351598810,1738654232216,-614.1,8.618e-05,2]
[351598811,1738654232225,-918.98,8.618e-05,2]
[351598812,1738654232235,-1429.41,8.618e-05,2]
[351598813,1738654232245,-507.34,8.618e-05,2]
[351598814,1738654232255,-1308.32,8.618e-05,2]
[351598815,1738654232265,-1953.38,8.618e-05,2]
[351598816,1738654232276,-745.38,8.618e-05,2]
[351598817,1738654232286,-500.0,8.618e-05,2]
[351598818,1738654232296,-688.11,8.618e-05,2]
[351598819,1738654232306,-500.0,8.618e-05,2]
[351598820,1738654232320,-859.85,8.618e-05,2]
[351598821,1738654232331,-1156.02,8.618e-05,2]
[351598822,1738654232349,-501.91,8.618e-05,2]
[351598825,1738654232359,-1396.9,8.618e-05,2]
[351598828,1738654232369,-500.0,8.618e-05,2]
[351598829,1738654232379,-684.54,8.618e-05,2]
[351598830,1738654232388,-1511.47,8.618e-05,2]
[351598831,1738654232397,-872.94,8.618e-05,2]
[351598832,1738654232406,-937.7,8.618e-05,2]
[351598833,1738654232416,-500.0,8.618e-05,2]
[351598834,1738654232427,-1217.21907572,8.618e-05,2]
[351598835,1738654232437,-500.0,8.618e-05,2]
[351598836,1738654232448,-888.32,8.618e-05,2]
[351598837,1738654232457,-640.15,8.618e-05,2]
[351598838,1738654232467,-500.0,8.618e-05,2]
[351598839,1738654232478,-1288.31,8.618e-05,2]
[351598840,1738654232488,-500.0,8.618e-05,2]
[351598841,1738654232500,-1166.99,8.618e-05,2]
[351598842,1738654232511,-850.38,8.618e-05,2]
[351598843,1738654232522,-1581.11,8.618e-05,2]
[351598844,1738654232532,-620.72,8.618e-05,2]
[351598845,1738654232542,-500.0,8.618e-05,2]
[351598846,1738654232552,-500.0,8.618e-05,2]
[351598847,1738654232561,-659.26,8.618e-05,2]
[351598848,1738654232571,-500.0,8.618e-05,2]
[351598849,1738654232581,-725.18,8.618e-05,2]
[351598850,1738654232591,-716.11,8.618e-05,2]
[351598851,1738654232601,-1408.67,8.618e-05,2]
[351598852,1738654232613,-530.67,8.618e-05,2]
[351598853,1738654232624,-500.0,8.618e-05,2]
[351598854,1738654232634,-716.09,8.618e-05,2]
[351598855,1738654232645,-572.04,8.618e-05,2]
[351598856,1738654232655,-900.76,8.618e-05,2]
[351598857,1738654232664,-970.99,8.618e-05,2]
[351598858,1738654232675,-906.44,8.618e-05,2]
[351598859,1738654232685,-1615.53,8.618e-05,2]
[351598860,1738654232695,-1194.21,8.618e-05,2]
[351598861,1738654232705,-500.0,8.618e-05,2]
[351598862,1738654232716,-500.0,8.618e-05,2]
[351598863,1738654232727,-1718.61,8.618e-05,2]
[351598864,1738654232737,-2391.74,8.618e-05,2]
[351598865,1738654232751,-500.0,8.618e-05,2]
[351598866,1738654232761,-500.0,8.618e-05,2]
[351598867,1738654232772,-1095.27,8.618e-05,2]
[351598868,1738654232782,-821.77,8.618e-05,2]
[351598869,1738654232793,-500.0,8.618e-05,2]
[351598870,1738654232803,-500.0,8.618e-05,2]
[351598871,1738654232814,-1114.68,8.618e-05,2]
[351598872,1738654232825,-500.0,8.661e-05,2]
[351598873,1738654232836,-501.64952675,8.661e-05,2]
[351598874,1738654232848,-1255.65,8.661e-05,2]
[351598875,1738654232858,-500.0,8.661e-05,2]
[351598876,1738654232869,-500.0,8.661e-05,2]
[351598877,1738654232881,-500.0,8.661e-05,2]
[351598878,1738654232893,-679.91,8.661e-05,2]
[351598879,1738654232905,-796.05,8.661e-05,2]
[351598880,1738654232916,-959.72,8.661e-05,2]
[351598881,1738654232926,-500.0,8.661e-05,2]
[351598882,1738654232939,-500.0,8.661e-05,2]
[351598883,1738654232950,-596.44,8.661e-05,2]
[351598884,1738654232961,-500.00163332,8.661e-05,2]
[351598885,1738654232971,-533.92,8.661e-05,2]
[351598886,1738654232983,-500.0,8.661e-05,2]
[351598887,1738654232993,-500.0,8.661e-05,2]
[351598888,1738654233010,-255.81217309,8.661e-05,2]
[351598889,1738654233019,-760.67,8.661e-05,2]
[351598890,1738654233028,-500.0,8.661e-05,2]
[351598891,1738654233037,-500.0,8.661e-05,2]
[351598892,1738654233047,-500.0,8.661e-05,2]
[351598893,1738654233057,-500.0,8.661e-05,2]
[351598894,1738654233068,-500.0,8.661e-05,2]
[351598895,1738654233078,-500.0,8.661e-05,2]
[351598896,1738654233087,-500.0,8.661e-05,2]
[351598897,1738654233097,-500.0,8.661e-05,2]
[351598898,1738654233107,-621.12,8.661e-05,2]
[351598899,1738654233117,-946.06,8.661e-05,2]
[351598900,1738654233127,-668.6,8.661e-05,2]
[351598901,1738654233138,-500.0,8.661e-05,2]
[351598902,1738654233147,-698.76481358,8.661e-05,2]
[351598903,1738654233160,-706.68518642,8.661e-05,2]
[351598904,1738654233170,-869.03,8.661e-05,2]
[351598905,1738654233181,-561.74,8.661e-05,2]
[351598906,1738654233191,-832.87914802,8.661e-05,2]
[351598907,1738654233224,-1118.02085198,8.661e-05,2]
[351598908,1738654233234,-1582.34,8.661e-05,2]
[351598909,1738654233244,-500.0,8.661e-05,2]
[351598910,1738654233257,-762.67914802,8.661e-05,2]
[351598911,1738654237664,-894.46,8.618e-05,2]
[351598912,1738654237675,-400.14198298,8.661e-05,2]
[351598913,1738654237685,-756.93,8.661e-05,2]
[351598914,1738654237695,-1586.77,8.661e-05,2]
[351598915,1738654237704,-1146.267854,8.661e-05,2]
[351598916,1738654237714,-862.35,8.661e-05,2]
[351598917,1738654237724,-155.639737,8.661e-05,2]
[351598918,1738654237733,-1213.39009602,8.661e-05,2]
[351598919,1738654237773,-172.33990398,8.661e-05,2]
[351598920,1738654237783,-1122.69054069,8.661e-05,2]
[351598921,1738654237795,-164.49945931,8.661e-05,2]
[351598922,1738654237804,-295.50054072,8.661e-05,2]
[351598923,1738654237824,-689.47945928,8.661e-05,2]
[351598924,1738654237833,-1242.55,8.661e-05,2]
[351598925,1738654237843,-755.15,8.661e-05,2]
[351598926,1738654237853,-1454.57,8.661e-05,2]
[351598927,1738654237862,-1512.32,8.661e-05,2]
[351598928,1738654237872,-1608.93,8.661e-05,2]
[351598929,1738654237882,-654.23,8.661e-05,2]
[351598930,1738654237892,-995.6,8.661e-05,2]
[351598931,1738654237906,-500.0,8.661e-05,2]
[351598932,1738654237915,-1140.67,8.661e-05,2]
[351598933,1738654237924,-500.0,8.661e-05,2]
[351598934,1738654237934,-501.4502712,8.661e-05,2]
[351598935,1738654237945,-3184.04,8.661e-05,2]
[351598936,1738654237955,-1171.16,8.661e-05,2]
[351598937,1738654237964,-1452.24,8.661e-05,2]
[351598939,1738654237974,-1408.22,8.661e-05,2]
[351598940,1738654237983,-1175.79,8.661e-05,2]
[351598942,1738654237992,-1744.99,8.661e-05,2]
[351598944,1738654238002,-1919.51,8.661e-05,2]
[351598946,1738654238013,-500.0,8.661e-05,2]
[351598948,1738654238022,-1183.24,8.661e-05,2]
[351598950,1738654238031,-1859.41,8.661e-05,2]
[351598953,1738654238040,-3825.48,8.661e-05,2]
[351598954,1738654238050,-1103.34,8.661e-05,2]
[351598956,1738654238059,-500.0,8.661e-05,2]
[351598958,1738654238068,-3327.14,8.661e-05,2]
[351598960,1738654238078,-500.0,8.661e-05,2]
[351598962,1738654238087,-1400.46,8.661e-05,2]
[351598964,1738654238096,-560.21,8.661e-05,2]
[351598966,1738654238106,-1965.21,8.661e-05,2]
[351598969,1738654238115,-1408.63,8.661e-05,2]
[351598972,1738654238124,-2286.23,8.661e-05,2]
[351598975,1738654238134,-2349.55,8.661e-05,2]
[351598979,1738654238143,-2439.96,8.661e-05,2]
[351598981,1738654238152,-1012.51,8.661e-05,2]
[351598983,1738654238161,-500.0,8.661e-05,2]
[351598984,1738654238170,-2258.3,8.661e-05,2]
[351598985,1738654238179,-5226.42,8.661e-05,2]
[351598987,1738654238189,-1904.85,8.661e-05,2]
[351598989,1738654238198,-580.1,8.661e-05,2]
[351598991,1738654238208,-1902.89,8.661e-05,2]
[351598993,1738654238217,-1738.57,8.661e-05,2]
[351598995,1738654238227,-2128.97,8.661e-05,2]
[351598997,1738654238237,-500.0,8.661e-05,2]
[351598999,1738654238247,-1824.37,8.661e-05,2]
[351599001,1738654238260,-500.0,8.661e-05,2]
[351599003,1738654238269,-1879.64,8.661e-05,2]
[351599005,1738654238279,-1724.43,8.661e-05,2]
[351599007,1738654238288,-1171.94,8.661e-05,2]
[351599009,1738654238297,-834.6,8.661e-05,2]
[351599011,1738654238306,-1474.62,8.661e-05,2]
[351599013,1738654238316,-500.0,8.661e-05,2]
[351599015,1738654238326,-1267.57,8.661e-05,2]
[351599017,1738654238335,-530.06697778,8.661e-05,2]
[351599019,1738654238351,-332.59258501,8.661e-05,2]
[351599022,1738654238365,-233.75043721,8.661e-05,2]
[351599024,1738654238375,-764.95,8.661e-05,2]
[351599026,1738654238384,-1475.8,8.661e-05,2]
[351599028,1738654238393,-500.0,8.661e-05,2]
[351599030,1738654238403,-500.0,8.661e-05,2]
[351599031,1738654238412,-646.09,8.661e-05,2]
[351599033,1738654238421,-500.0,8.661e-05,2]
[351599035,1738654238431,-1203.24,8.661e-05,2]
[351599037,1738654238439,-1010.07,8.661e-05,2]
[351599039,1738654238448,-500.0,8.661e-05,2]
[351599041,1738654238458,-992.47,8.661e-05,2]
[351599043,1738654238467,-500.0,8.661e-05,2]
[351599045,1738654238476,-500.0,8.662e-05,2]
[351599047,1738654238486,-500.0,8.662e-05,2]
[351599049,1738654238496,-500.0,8.662e-05,2]
[351599051,1738654238508,-595.98482865,8.662e-05,2]
[351599053,1738654238517,-500.0,8.662e-05,2]
[351599055,1738654238527,-5.4301231,8.662e-05,2]
[351599172,1738654239711,-404.39144206,8.662e-05,2]
[351599175,1738654239723,-90.17843484,8.662e-05,2]
[351599177,1738654239733,-428.54156516,8.662e-05,2]
[351599185,1738654239799,-71.45843484,8.662e-05,2]
[351599187,1738654239809,-500.0,8.662e-05,2]
[351599189,1738654239818,-500.0,8.662e-05,2]
[351599191,1738654239828,-504.33,8.662e-05,2]
[351599193,1738654239837,-500.0,8.662e-05,2]
[351599195,1738654239847,-500.0,8.662e-05,2]
[351599197,1738654239857,-1078.63,8.662e-05,2]
[351599199,1738654239866,-500.0,8.662e-05,2]
[351599201,1738654239877,-500.0,8.662e-05,2]
[351599203,1738654239887,-500.0,8.662e-05,2]
[351599205,1738654239899,-250.36956517,8.662e-05,2]
[351599216,1738654239998,-862.7749996,8.661e-05,2]
[351599393,1738654243355,-300.3650004,8.661e-05,2]
[351599394,1738654243364,-832.82,8.661e-05,2]
[351599395,1738654243372,-500.0,8.661e-05,2]
[351599396,1738654243381,-366.8149996,8.661e-05,2]
[351599397,1738654243392,-854.6850004,8.661e-05,2]
[351599398,1738654243401,-1125.51552585,8.661e-05,2]
[351599399,1738654243532,-712.96447415,8.661e-05,2]
[351599400,1738654243541,-500.0,8.661e-05,2]
[351599401,1738654243550,-329.1886121,8.662e-05,2]
[351599402,1738654243560,-500.0,8.662e-05,2]
[351599403,1738654243569,-699.92,8.662e-05,2]
[351599404,1738654243578,-503.85740636,8.662e-05,2]
[351599405,1738654243587,-500.0,8.662e-05,2]
[351599406,1738654243597,-500.0,8.662e-05,2]
[351599407,1738654243606,-500.0,8.662e-05,2]
[351599408,1738654243615,-590.33,8.662e-05,2]
[351599409,1738654243625,-500.0,8.662e-05,2]
[351599410,1738654243634,-500.0,8.662e-05,2]
[351599411,1738654243644,-500.0,8.662e-05,2]
[351599412,1738654243653,-501.23967504,8.662e-05,2]
[351599413,1738654243662,-500.0,8.662e-05,2]
[351599414,1738654243671,-387.06162513,8.662e-05,2]
[351599415,1738654243680,-500.0,8.662e-05,2]
[351599416,1738654243690,-500.0,8.662e-05,2]
[351599417,1738654243699,-500.0,8.662e-05,2]
[351599418,1738654243708,-500.0,8.662e-05,2]
[351599419,1738654243716,-35.43820722,8.662e-05,2]
[351599420,1738654243728,-464.56179278,8.662e-05,2]
[351599421,1738654243737,-500.0,8.662e-05,2]
[351599424,1738654243746,-500.0,8.662e-05,2]
[351599427,1738654243755,-1349.33,8.662e-05,2]
[351599430,1738654243766,-500.0,8.662e-05,2]
[351599432,1738654243775,-500.397876,8.662e-05,2]
[351599434,1738654243784,-500.0,8.662e-05,2]
[351599435,1738654243793,-500.0,8.662e-05,2]
[351599436,1738654243803,-219.88973283,8.662e-05,2]
[351599437,1738654243812,-500.0,8.662e-05,2]
[351599438,1738654243821,-500.0,8.662e-05,2]
[351599439,1738654243830,-500.0,8.662e-05,2]